fUST/lending_fUST_20250225
["ID","MTS","AMOUNT","RATE_DAILY","PERIOD"]
[354338049,1740431441286,-366.572376,0.00013944,2]
[354338050,1740431441295,-366.572376,0.00013944,2]
[354338051,1740431441305,-151.0,0.00013944,2]
[354338052,1740431441314,-151.0,0.00013944,2]
[354338053,1740431441323,-2034.79,0.00013944,2]
[354338054,1740431441332,-2034.79,0.00013944,2]
[354338055,1740431441341,-2444.37,0.00013944,2]
[354338056,1740431441351,-2444.37,0.00013944,2]
[354338057,1740431441360,-2444.37,0.00013944,2]
[354338058,1740431441369,-2444.37,0.00013944,2]
[354338059,1740431441378,-2444.37,0.00013944,2]
[354338060,1740431441387,-1870.81154944,0.00013944,2]
[354338061,1740431441524,-573.69087355,0.00013944,2]
[354338062,1740431441533,-151.0,0.00013945,2]
[354338063,1740431441543,-151.0,0.00013945,2]
[354338064,1740431441552,-75.71807199,0.00013945,2]
[354338065,1740431441568,-75.28192801,0.00013945,2]
[354338066,1740431441578,-151.0,0.00013945,2]
[354338067,1740431441587,-1438.148856,0.00013945,2]
[354338068,1740431441597,-1438.148856,0.00013945,2]
[354338069,1740431441606,-388.27256579,0.00013945,2]
[354338070,1740431441618,-108.86743421,0.00013945,2]
[354338071,1740431441631,-366.572376,0.00013945,2]
[354338072,1740431441640,-182.44,0.00013945,2]
[354338073,1740431441650,-261.62948115,0.00013945,2]
[354338074,1740431441662,-104.94289485,0.00013945,2]
[354338075,1740431441672,-310.56,0.00013945,2]
[354338076,1740431441682,-477.88129216,0.00013945,2]
[354338077,1740431441694,-22.11870784,0.00013945,2]
[354338078,1740431441705,-438.4,0.00013945,2]
[354338079,1740431441714,-154.037813,0.00013945,2]
[354338080,1740431441724,-193.800963,0.00013945,2]
[354338081,1740431441734,-193.800963,0.00013945,2]
[354338082,1740431441743,-500.0,0.00013945,2]
[354338083,1740431441753,-446.68,0.00013945,2]
[354338084,1740431441763,-500.0,0.00013945,2]
[354338085,1740431441772,-443.535564,0.00013945,2]
[354338086,1740431441781,-443.535558,0.00013945,2]
[354338087,1740431441791,-153.305354,0.00013945,2]
[354338088,1740431441800,-500.0,0.00013945,2]
[354338089,1740431441810,-151.0,0.00013945,2]
[354338090,1740431441819,-500.0,0.00013945,2]
[354338091,1740431441828,-500.0,0.00013945,2]
[354338092,1740431441838,-500.0,0.00013945,2]
[354338093,1740431441847,-595.17,0.00013945,2]
[354338094,1740431441856,-1080.03,0.00013945,2]
[354338095,1740431441865,-512.36,0.00013945,2]
[354338096,1740431441874,-317.58,0.00013945,2]
[354338097,1740431441883,-500.0,0.00013945,2]
[354338098,1740431441893,-500.0,0.00013945,2]
[354338099,1740431441902,-12685.8,0.00013945,2]
[354338100,1740431441911,-500.0,0.00013945,2]
[354338101,1740431441920,-3091.094873,0.00013945,2]
[354338102,1740431441929,-500.0,0.00013945,2]
[354338103,1740431441938,-3091.094873,0.00013945,2]
[354338104,1740431441947,-500.0,0.00013945,2]
[354338105,1740431441957,-500.0,0.00013945,2]
[354338106,1740431441966,-500.0,0.00013945,2]
[354338107,1740431441976,-3220.75,0.00013945,2]
[354338108,1740431441985,-500.0,0.00013945,2]
[354338109,1740431441995,-500.0,0.00013945,2]
[354338110,1740431442004,-1702.53,0.00013945,2]
[354338111,1740431442013,-240.19773553,0.00013945,2]
[354338112,1740431442022,-1542.03,0.00013945,2]
[354338113,1740431442031,-500.0,0.00013945,2]
[354338114,1740431442040,-500.0,0.00013945,2]
[354338115,1740431442049,-500.0,0.00013945,2]
[354338116,1740431442059,-500.0,0.00013973,2]
[354338117,1740431442069,-581.54249387,0.00013973,2]
[354338118,1740431442078,-500.0,0.00013973,2]
[354338119,1740431442088,-500.0,0.00013973,2]
[354338120,1740431442097,-500.0,0.00013973,2]
[354338121,1740431442107,-500.0,0.00013973,2]
[354338122,1740431442116,-61885.11010481,0.00014,2]
[354338123,1740431442133,-15695.45306065,0.00014,2]
[354338124,1740431442279,-500.0,0.00013698,2]
[354338125,1740431442288,-151.0,0.00013698,2]
[354338126,1740431442298,-151.0,0.00013698,2]
[354338127,1740431442307,-151.0,0.00013698,2]
[354338128,1740431442316,-151.0,0.00013698,2]
[354338129,1740431442326,-151.0,0.00013698,2]
[354338130,1740431442336,-151.0,0.00013698,2]
[354338131,1740431442345,-151.0,0.00013698,2]
[354338132,1740431442354,-217.066774,0.00013779,2]
[354338133,1740431442363,-500.0,0.0001378,2]
[354338134,1740431442373,-500.0,0.00013863,2]
[354338135,1740431442382,-500.0,0.00013945,2]
[354338136,1740431442391,-1277.76785516,0.00014,2]
[354338137,1740431442403,-11348.52288283,0.00014,2]
[354338138,1740431442414,-83852.57801012,0.00014,2]
[354338139,1740431442425,-542.05,0.00014,2]
[354338141,1740431443257,-500.0,0.00013698,2]
[354338142,1740431443267,-500.0,0.00013698,2]
[354338144,1740431443276,-146523.44320112,0.00014,2]
[354338147,1740431443313,-1857.64706814,0.00014,2]
[354338151,1740431443713,-345.18865253,0.00014,2]
[354338152,1740431443726,-644.95453371,0.00014,2]
[354338153,1740431443794,-525.24932329,0.00014,2]
[354338165,1740431521379,222.3401,9.041e-05,2]
[354338177,1740432437106,-490.28590434,0.00010472,2]
[354338178,1740432442097,-1309.71409566,0.00010472,2]
[354338179,1740432442119,-413.91948896,0.00010959,2]
[354338180,1740432454083,-127.03051104,0.00010959,2]
[354338181,1740432454107,-1239.3859616,0.00011842,2]
[354338182,1740432529638,211.223095,9.041e-05,2]
[354338188,1740432546148,-1600.0,0.00010472,2]
[354338189,1740432546172,-1600.0,0.00011842,2]
[354338190,1740432546193,-300.0,0.00012426,2]
[354338191,1740432546214,-19580.8903416,0.00012427,2]
[354338192,1740432552167,-5319.1096584,0.00012427,2]
[354338193,1740432552188,-30963.6702869,0.00012573,2]
[354338194,1740432552211,-2107.05882449,0.00012576,2]
[354338203,1740432569141,-686.6377634,0.00012576,2]
[354338204,1740432574098,-43.92506871,0.00012576,2]
[354338205,1740432574120,-920.34593129,0.00013212,2]
[354338215,1740432632796,-423.65853818,0.00013212,2]
[354338216,1740432632808,-255.99553053,0.00013212,2]
[354338217,1740432632818,-5363.26574297,0.00013484,2]
[354338218,1740432632827,-853.17552806,0.000135,2]
[354338219,1740432632837,-174.91972349,0.00013598,2]
[354338220,1740432632846,-500.0,0.00013673,2]
[354338221,1740432632855,-500.0,0.00013673,2]
[354338222,1740432632865,-500.0,0.00013673,2]
[354338223,1740432632874,-300.0,0.00013696,2]
[354338224,1740432632884,-692.94209507,0.00013697,2]
[354338225,1740432632894,-432.789,0.00013697,2]
[354338226,1740432632903,-175.046,0.00013697,2]
[354338227,1740432632912,-284.302962,0.00013698,2]
[354338228,1740432632921,-284.302962,0.00013698,2]
[354338229,1740432632930,-284.302962,0.00013698,2]
[354338230,1740432632940,-284.302962,0.00013698,2]
[354338231,1740432632950,-284.302962,0.00013698,2]
[354338232,1740432632959,-284.302962,0.00013698,2]
[354338233,1740432632969,-500.0,0.00013698,2]
[354338234,1740432632979,-326.287634,0.00013698,2]
[354338235,1740432632988,-326.287634,0.00013698,2]
[354338236,1740432632998,-326.287634,0.00013698,2]
[354338237,1740432633009,-326.287634,0.00013698,2]
[354338238,1740432633021,-326.287634,0.00013698,2]
[354338239,1740432633031,-326.287634,0.00013698,2]
[354338240,1740432633040,-326.287634,0.00013698,2]
[354338241,1740432633050,-326.287634,0.00013698,2]
[354338242,1740432633060,-326.287634,0.00013698,2]
[354338243,1740432633069,-326.287634,0.00013698,2]
[354338244,1740432633078,-326.287634,0.00013698,2]
[354338245,1740432633088,-326.287634,0.00013698,2]
[354338246,1740432633098,-326.287634,0.00013698,2]
[354338247,1740432633107,-326.287634,0.00013698,2]
[354338248,1740432633116,-326.287634,0.00013698,2]
[354338249,1740432633126,-326.287634,0.00013698,2]
[354338250,1740432633135,-326.287634,0.00013698,2]
[354338251,1740432633144,-326.287634,0.00013698,2]
[354338252,1740432633153,-326.287634,0.00013698,2]
[354338253,1740432633163,-326.287624,0.00013698,2]
[354338254,1740432633172,-500.0,0.00013698,2]
[354338255,1740432633181,-500.0,0.00013698,2]
[354338256,1740432633191,-500.0,0.00013698,2]
[354338257,1740432633200,-500.0,0.00013698,2]
[354338258,1740432633210,-500.0,0.00013698,2]
[354338259,1740432633219,-500.0,0.00013698,2]
[354338260,1740432633228,-500.0,0.00013698,2]
[354338261,1740432633238,-178.01080506,0.00013698,2]
[354338262,1740432633248,-500.0,0.00013698,2]
[354338263,1740432633257,-500.0,0.00013698,2]
[354338264,1740432633266,-500.0,0.00013698,2]
[354338265,1740432633275,-509.35374891,0.00013698,2]
[354338266,1740432633285,-502.04530904,0.00013698,2]
[354338267,1740432633294,-502.81041958,0.00013698,2]
[354338268,1740432633303,-500.0,0.00013698,2]
[354338269,1740432633312,-500.0,0.00013698,2]
[354338270,1740432633322,-500.0,0.00013698,2]
[354338271,1740432633332,-500.0,0.00013698,2]
[354338272,1740432633341,-500.0,0.00013698,2]
[354338273,1740432633351,-500.0,0.00013698,2]
[354338274,1740432633361,-609.29778675,0.00013698,2]
[354338275,1740432633371,-500.0,0.00013698,2]
[354338276,1740432633380,-500.0,0.00013698,2]
[354338277,1740432633390,-500.0,0.00013698,2]
[354338278,1740432633399,-500.0,0.00013698,2]
[354338279,1740432633409,-500.0,0.00013698,2]
[354338280,1740432633419,-352.65659882,0.00013698,2]
[354338281,1740432633429,-238.91887548,0.00013698,2]
[354338282,1740432633439,-500.0,0.00013698,2]
[354338283,1740432633449,-500.0,0.00013698,2]
[354338284,1740432633459,-500.0,0.00013698,2]
[354338285,1740432633469,-500.0,0.00013698,2]
[354338286,1740432633478,-500.0,0.00013698,2]
[354338287,1740432633487,-500.0,0.00013698,2]
[354338288,1740432633498,-500.0,0.00013698,2]
[354338289,1740432633507,-500.0,0.00013698,2]
[354338290,1740432633516,-500.0,0.00013698,2]
[354338291,1740432633525,-500.0,0.00013698,2]
[354338292,1740432633535,-500.0,0.00013698,2]
[354338293,1740432633544,-222.91450135,0.00013698,2]
[354338294,1740432633554,-500.0,0.00013698,2]
[354338295,1740432633563,-150.41863329,0.00013698,2]
[354338296,1740432633572,-506.23186168,0.00013698,2]
[354338297,1740432633581,-500.0,0.00013698,2]
[354338298,1740432633591,-500.0,0.00013698,2]
[354338299,1740432633720,-513.82727135,0.00013698,2]
[354338300,1740432633730,-500.0,0.00013698,2]
[354338301,1740432633739,-500.0,0.00013698,2]
[354338302,1740432633750,-500.0,0.00013698,2]
[354338303,1740432633760,-500.0,0.00013698,2]
[354338304,1740432633770,-500.0,0.00013698,2]
[354338305,1740432633780,-500.0,0.00013698,2]
[354338306,1740432633789,-500.0,0.00013698,2]
[354338307,1740432633799,-500.0,0.00013698,2]
[354338308,1740432633808,-500.0,0.00013698,2]
[354338309,1740432633817,-500.0,0.00013698,2]
[354338310,1740432633827,-360.72851276,0.00013698,2]
[354338311,1740432633836,-500.0,0.00013698,2]
[354338312,1740432633846,-500.0,0.00013698,2]
[354338313,1740432633855,-500.0,0.00013698,2]
[354338314,1740432633864,-271.0707789,0.00013698,2]
[354338315,1740432633874,-500.0,0.00013698,2]
[354338316,1740432633884,-500.0,0.00013698,2]
[354338317,1740432633894,-500.0,0.00013698,2]
[354338318,1740432633904,-500.0,0.00013698,2]
[354338319,1740432633914,-500.0,0.00013698,2]
[354338320,1740432633923,-500.0,0.00013698,2]
[354338321,1740432633933,-500.0,0.00013698,2]
[354338322,1740432633942,-500.0,0.00013698,2]
[354338323,1740432633952,-500.0,0.00013698,2]
[354338324,1740432633961,-565.14,0.00013698,2]
[354338325,1740432633971,-500.0,0.00013698,2]
[354338326,1740432633980,-500.0,0.00013698,2]
[354338327,1740432633990,-500.42334935,0.00013698,2]
[354338328,1740432633999,-500.0,0.00013698,2]
[354338329,1740432634010,-500.0,0.00013698,2]
[354338330,1740432634020,-199.8596695,0.00013698,2]
[354338331,1740432634030,-500.0,0.00013698,2]
[354338332,1740432634040,-500.0,0.00013698,2]
[354338333,1740432634053,-352.66385049,0.00013698,2]
[354338334,1740432634063,-500.0,0.00013698,2]
[354338335,1740432634072,-500.0,0.00013698,2]
[354338336,1740432634081,-500.0,0.00013698,2]
[354338337,1740432634091,-500.57141468,0.00013698,2]
[354338338,1740432634100,-500.0,0.00013698,2]
[354338339,1740432634110,-178.61843389,0.00013698,2]
[354338340,1740432634119,-500.0,0.00013698,2]
[354338341,1740432634128,-500.0,0.00013698,2]
[354338342,1740432634138,-511.01475335,0.00013698,2]
[354338343,1740432634147,-500.78384974,0.00013698,2]
[354338344,1740432634157,-500.0,0.00013698,2]
[354338345,1740432634166,-500.0,0.00013698,2]
[354338346,1740432634175,-500.0,0.00013698,2]
[354338347,1740432634185,-500.0,0.00013698,2]
[354338348,1740432634194,-500.80937886,0.00013698,2]
[354338349,1740432634203,-500.0,0.00013698,2]
[354338350,1740432634213,-500.75468648,0.00013698,2]
[354338351,1740432634222,-502.09228693,0.00013698,2]
[354338352,1740432634231,-500.0,0.00013698,2]
[354338353,1740432634241,-500.0,0.00013698,2]
[354338354,1740432634250,-500.0,0.00013698,2]
[354338355,1740432634260,-500.0,0.00013698,2]
[354338356,1740432634269,-500.0,0.00013698,2]
[354338357,1740432634278,-500.0,0.00013698,2]
[354338358,1740432634288,-500.0,0.00013698,2]
[354338359,1740432634297,-500.0,0.00013698,2]
[354338360,1740432634307,-415.66286563,0.00013698,2]
[354338361,1740432634316,-500.0,0.00013698,2]
[354338362,1740432634326,-504.74281639,0.00013698,2]
[354338363,1740432634335,-500.0,0.00013698,2]
[354338364,1740432634345,-500.0,0.00013698,2]
[354338365,1740432634354,-500.0,0.00013698,2]
[354338366,1740432634364,-228.72462489,0.00013698,2]
[354338367,1740432634373,-500.0,0.00013698,2]
[354338368,1740432634382,-500.0,0.00013698,2]
[354338369,1740432634391,-500.0,0.00013698,2]
[354338370,1740432634401,-500.99768978,0.00013698,2]
[354338371,1740432634410,-500.0,0.00013698,2]
[354338372,1740432634420,-500.0,0.00013698,2]
[354338373,1740432634429,-500.0,0.00013698,2]
[354338374,1740432634438,-500.0,0.00013698,2]
[354338375,1740432634448,-500.0,0.00013698,2]
[354338376,1740432634457,-500.0,0.00013698,2]
[354338377,1740432634467,-500.0,0.00013698,2]
[354338378,1740432634475,-500.0,0.00013698,2]
[354338379,1740432634485,-500.0,0.00013698,2]
[354338380,1740432634495,-500.0,0.00013698,2]
[354338381,1740432634504,-500.0,0.00013698,2]
[354338382,1740432634513,-500.0,0.00013698,2]
[354338383,1740432634523,-500.0,0.00013698,2]
[354338384,1740432634531,-290.57924227,0.00013698,2]
[354338385,1740432634541,-500.0,0.00013698,2]
[354338386,1740432634550,-500.0,0.00013698,2]
[354338387,1740432634559,-500.0,0.00013698,2]
[354338388,1740432634568,-500.0,0.00013698,2]
[354338389,1740432634577,-500.0,0.00013698,2]
[354338390,1740432634586,-500.0,0.00013698,2]
[354338391,1740432634595,-500.0,0.00013698,2]
[354338392,1740432634603,-503.3429473,0.00013698,2]
[354338393,1740432634612,-500.0,0.00013698,2]
[354338394,1740432634621,-516.57767963,0.00013698,2]
[354338395,1740432634630,-500.0,0.00013698,2]
[354338396,1740432634639,-548.63468858,0.00013698,2]
[354338397,1740432634649,-500.0,0.00013698,2]
[354338398,1740432634658,-503.44016034,0.00013698,2]
[354338399,1740432634667,-500.0,0.00013698,2]
[354338400,1740432634676,-500.0,0.00013698,2]
[354338401,1740432634686,-500.0,0.00013698,2]
[354338402,1740432634695,-410.70997198,0.00013698,2]
[354338403,1740432634705,-500.0,0.00013698,2]
[354338404,1740432634715,-500.0,0.00013698,2]
[354338405,1740432634724,-500.0,0.00013698,2]
[354338406,1740432634734,-500.0,0.00013698,2]
[354338407,1740432634744,-500.0,0.00013698,2]
[354338408,1740432634754,-500.0,0.00013698,2]
[354338409,1740432634764,-505.88218066,0.00013698,2]
[354338410,1740432634773,-405.8240027,0.00013698,2]
[354338411,1740432634782,-500.0,0.00013698,2]
[354338412,1740432634791,-500.0,0.00013698,2]
[354338413,1740432634800,-500.0,0.00013698,2]
[354338414,1740432634810,-500.0,0.00013698,2]
[354338415,1740432634819,-500.0,0.00013698,2]
[354338416,1740432634828,-500.0,0.00013698,2]
[354338417,1740432634837,-500.0,0.00013698,2]
[354338418,1740432634847,-500.0,0.00013698,2]
[354338419,1740432634856,-500.0,0.00013698,2]
[354338420,1740432634865,-500.0,0.00013698,2]
[354338421,1740432634875,-500.0,0.00013698,2]
[354338422,1740432634884,-500.0,0.00013698,2]
[354338423,1740432634893,-500.0,0.00013698,2]
[354338424,1740432634902,-500.33329908,0.00013698,2]
[354338425,1740432634911,-500.0,0.00013698,2]
[354338426,1740432634920,-500.0,0.00013698,2]
[354338427,1740432634930,-488.72,0.00013698,2]
[354338428,1740432634939,-500.34390743,0.00013698,2]
[354338429,1740432634948,-317.37392882,0.00013698,2]
[354338430,1740432634957,-500.0,0.00013698,2]
[354338431,1740432634967,-500.0,0.00013698,2]
[354338432,1740432634976,-500.0,0.00013698,2]
[354338433,1740432634986,-581.41995217,0.00013698,2]
[354338434,1740432634996,-500.0,0.00013698,2]
[354338435,1740432635010,-500.0,0.00013698,2]
[354338436,1740432635021,-500.0,0.00013698,2]
[354338437,1740432635031,-500.0,0.00013698,2]
[354338438,1740432635040,-500.0,0.00013698,2]
[354338439,1740432635051,-500.0,0.00013698,2]
[354338440,1740432635060,-500.0,0.00013698,2]
[354338441,1740432635069,-502.64100917,0.00013698,2]
[354338442,1740432635078,-500.0,0.00013698,2]
[354338443,1740432635087,-500.0,0.00013698,2]
[354338444,1740432635097,-500.0,0.00013698,2]
[354338445,1740432635106,-500.0,0.00013698,2]
[354338446,1740432635114,-503.74310598,0.00013698,2]
[354338447,1740432635124,-500.0,0.00013698,2]
[354338448,1740432635133,-500.0,0.00013698,2]
[354338449,1740432635141,-500.0,0.00013698,2]
[354338450,1740432635151,-500.0,0.00013698,2]
[354338451,1740432635160,-500.0,0.00013698,2]
[354338452,1740432635170,-500.27841536,0.00013698,2]
[354338453,1740432635179,-500.0,0.00013698,2]
[354338454,1740432635188,-500.0,0.00013698,2]
[354338455,1740432635197,-500.0,0.00013698,2]
[354338456,1740432635207,-500.0,0.00013698,2]
[354338457,1740432635216,-500.0,0.00013698,2]
[354338458,1740432635225,-500.0,0.00013698,2]
[354338459,1740432635234,-500.0,0.00013698,2]
[354338460,1740432635244,-500.31907885,0.00013698,2]
[354338461,1740432635254,-500.0,0.00013698,2]
[354338462,1740432635263,-500.0,0.00013698,2]
[354338463,1740432635272,-500.0,0.00013698,2]
[354338464,1740432635282,-500.0,0.00013698,2]
[354338465,1740432635291,-500.0,0.00013698,2]
[354338466,1740432635300,-500.0,0.00013698,2]
[354338467,1740432635309,-591.01742791,0.00013698,2]
[354338468,1740432635318,-500.0,0.00013698,2]
[354338469,1740432635328,-500.0,0.00013698,2]
[354338470,1740432635338,-500.0,0.00013698,2]
[354338471,1740432635347,-500.0,0.00013698,2]
[354338472,1740432635356,-500.0,0.00013698,2]
[354338473,1740432635365,-500.0,0.00013698,2]
[354338474,1740432635374,-500.0,0.00013698,2]
[354338475,1740432635384,-514.81,0.00013698,2]
[354338476,1740432635392,-500.0,0.00013698,2]
[354338477,1740432635401,-500.0,0.00013698,2]
[354338478,1740432635411,-500.0,0.00013698,2]
[354338479,1740432635420,-500.0,0.00013698,2]
[354338480,1740432635429,-500.0,0.00013698,2]
[354338481,1740432635439,-500.0,0.00013698,2]
[354338482,1740432635449,-500.0,0.00013698,2]
[354338483,1740432635458,-500.0,0.00013698,2]
[354338484,1740432635467,-500.0,0.00013698,2]
[354338485,1740432635477,-500.0,0.00013698,2]
[354338486,1740432635486,-500.0,0.00013698,2]
[354338487,1740432635496,-500.0,0.00013698,2]
[354338488,1740432635505,-500.0,0.00013698,2]
[354338489,1740432635514,-500.0,0.00013698,2]
[354338490,1740432635523,-500.0,0.00013698,2]
[354338491,1740432635533,-500.0,0.00013698,2]
[354338492,1740432635542,-500.0,0.00013698,2]
[354338493,1740432635551,-500.0,0.00013698,2]
[354338494,1740432635560,-500.0,0.00013698,2]
[354338495,1740432635570,-500.0,0.00013698,2]
[354338496,1740432635579,-500.0,0.00013698,2]
[354338497,1740432635588,-500.0,0.00013698,2]
[354338498,1740432635597,-500.0,0.00013698,2]
[354338499,1740432635607,-500.0,0.00013698,2]
[354338500,1740432635616,-500.0,0.00013698,2]
[354338501,1740432635625,-1186.96,0.00013698,2]
[354338502,1740432635635,-500.0,0.00013698,2]
[354338503,1740432635644,-1186.96,0.00013698,2]
[354338504,1740432635652,-500.0,0.00013698,2]
[354338505,1740432635662,-1186.96,0.00013698,2]
[354338506,1740432635671,-1186.96,0.00013698,2]
[354338507,1740432635680,-1186.96,0.00013698,2]
[354338508,1740432635689,-1186.96,0.00013698,2]
[354338509,1740432635699,-1186.96,0.00013698,2]
[354338510,1740432635708,-1186.96,0.00013698,2]
[354338511,1740432635717,-500.0,0.00013698,2]
[354338512,1740432635726,-500.0,0.00013698,2]
[354338513,1740432635735,-500.0,0.00013698,2]
[354338514,1740432635745,-500.0,0.00013698,2]
[354338515,1740432635754,-509.55409756,0.00013698,2]
[354338516,1740432635763,-786.23,0.00013698,2]
[354338517,1740432635772,-500.0,0.00013698,2]
[354338518,1740432635781,-500.0,0.00013698,2]
[354338519,1740432635790,-500.0,0.00013698,2]
[354338520,1740432635799,-461.5685709,0.00013698,2]
[354338521,1740432635809,-500.0,0.00013698,2]
[354338522,1740432635818,-500.0,0.00013698,2]
[354338523,1740432635827,-500.0,0.00013698,2]
[354338524,1740432635836,-500.0,0.00013698,2]
[354338525,1740432635846,-500.0,0.00013698,2]
[354338526,1740432635855,-500.0,0.00013698,2]
[354338527,1740432635864,-500.0,0.00013698,2]
[354338528,1740432635873,-500.0,0.00013698,2]
[354338529,1740432635883,-288.91763651,0.00013698,2]
[354338530,1740432635892,-500.0,0.00013698,2]
[354338531,1740432635901,-500.0,0.00013698,2]
[354338532,1740432635910,-500.0,0.00013698,2]
[354338533,1740432635919,-1498.16,0.00013698,2]
[354338534,1740432635929,-500.0,0.00013698,2]
[354338535,1740432635938,-500.0,0.00013698,2]
[354338536,1740432635947,-500.0,0.00013698,2]
[354338537,1740432635957,-500.0,0.00013698,2]
[354338538,1740432635967,-500.0,0.00013698,2]
[354338539,1740432635976,-500.0,0.00013698,2]
[354338540,1740432635985,-500.0,0.00013698,2]
[354338541,1740432635995,-500.0,0.00013698,2]
[354338542,1740432636005,-500.0,0.00013698,2]
[354338543,1740432636018,-500.0,0.00013698,2]
[354338544,1740432636028,-536.6,0.00013698,2]
[354338545,1740432636037,-500.0,0.00013698,2]
[354338546,1740432636046,-500.0,0.00013698,2]
[354338547,1740432636057,-500.0,0.00013698,2]
[354338548,1740432636066,-500.0,0.00013698,2]
[354338549,1740432636075,-423.1100184,0.00013698,2]
[354338550,1740432636086,-501.65443903,0.00013698,2]
[354338551,1740432636095,-500.0,0.00013698,2]
[354338552,1740432636105,-500.0,0.00013698,2]
[354338553,1740432636114,-500.0,0.00013698,2]
[354338554,1740432636123,-500.0,0.00013698,2]
[354338555,1740432636132,-506.58734621,0.00013698,2]
[354338556,1740432636142,-500.0,0.00013698,2]
[354338557,1740432636151,-500.0,0.00013698,2]
[354338558,1740432636161,-3464.08,0.00013698,2]
[354338559,1740432636170,-2314.99,0.00013698,2]
[354338560,1740432636179,-500.0,0.00013698,2]
[354338561,1740432636188,-516.39,0.00013698,2]
[354338562,1740432636198,-500.0,0.00013698,2]
[354338563,1740432636207,-500.0,0.00013698,2]
[354338564,1740432636216,-600.61,0.00013698,2]
[354338565,1740432636226,-503.79120332,0.00013698,2]
[354338566,1740432636235,-500.0,0.00013698,2]
[354338567,1740432636245,-500.0,0.00013698,2]
[354338568,1740432636255,-500.0,0.00013698,2]
[354338569,1740432636264,-14509.2,0.00013698,2]
[354338570,1740432636273,-500.0,0.00013698,2]
[354338571,1740432636376,-500.0,0.00013698,2]
[354338572,1740432636386,-500.0,0.00013698,2]
[354338573,1740432636396,-500.0,0.00013698,2]
[354338574,1740432636406,-500.0,0.00013698,2]
[354338575,1740432636415,-500.0,0.00013698,2]
[354338576,1740432636424,-500.0,0.00013698,2]
[354338577,1740432636433,-577.45,0.00013698,2]
[354338578,1740432636442,-500.0,0.00013698,2]
[354338579,1740432636451,-500.0,0.00013698,2]
[354338580,1740432636460,-500.0,0.00013698,2]
[354338581,1740432636470,-500.0,0.00013698,2]
[354338582,1740432636479,-1932.23,0.00013698,2]
[354338583,1740432636487,-500.0,0.00013698,2]
[354338584,1740432636498,-500.0,0.00013698,2]
[354338585,1740432636507,-500.0,0.00013698,2]
[354338586,1740432636517,-500.0,0.00013698,2]
[354338587,1740432636526,-500.0,0.00013698,2]
[354338588,1740432636535,-536.08838508,0.00013698,2]
[354338589,1740432636545,-500.0,0.00013698,2]
[354338590,1740432636554,-500.0,0.00013698,2]
[354338591,1740432636563,-1910.45,0.00013698,2]
[354338592,1740432636573,-500.0,0.00013698,2]
[354338593,1740432636582,-151.0,0.000137,2]
[354338594,1740432636592,-1186.96,0.00013779,2]
[354338595,1740432636601,-1186.96,0.00013779,2]
[354338596,1740432636611,-1186.96,0.00013779,2]
[354338597,1740432636620,-1186.96,0.00013779,2]
[354338598,1740432636630,-151.0,0.00013779,2]
[354338599,1740432636639,-351.78034373,0.00013779,2]